bitfinex/quotes_SOLUSD_20250226
["timestamp","ask_amount","ask_price","bid_price","bid_amount"]
[1740582404066,0.063,138.67,138.66,221.18252888]
[1740582404263,0.063,138.67,138.66,219.66864628]
[1740582406073,0.063,138.68,138.67,1.56864628]
[1740582406276,0.063,138.7,138.69,20.56864628]
[1740582406583,0.063,138.7,138.69,261.83150989]
[1740582406775,0.063,138.71,138.7,20.21829514]
[1740582406980,0.063,138.71,138.7,239.31829514]
[1740582407367,0.063,138.71,138.7,220.66864628]
[1740582407974,0.063,138.71,138.7,219.66864628]
[1740582408178,0.063,138.71,138.7,219.1]
[1740582408581,0.063,138.71,138.7,219.66864628]
[1740582408976,0.063,138.71,138.7,219.24216157]
[1740582409489,0.063,138.71,138.7,219.1]
[1740582409969,0.063,138.71,138.66,225.725]
[1740582410171,0.063,138.71,138.66,82.9]
[1740582410397,18.71264886,138.71,138.66,82.9]
[1740582410772,0.063,138.71,138.66,82.9]
[1740582412771,18.64964886,138.7,138.62,219.1]
[1740582413074,18.64964886,138.7,138.61,136.2]
[1740582413075,18.64964886,138.66,138.61,136.2]
[1740582413277,18.64964886,138.66,138.58,228.16]
[1740582413492,18.64964886,138.66,138.59,0.56864628]
[1740582413976,18.64964886,138.66,138.58,228.16]
[1740582414303,0.063,138.71,138.59,0.56864628]
[1740582414601,0.063,138.71,138.62,0.56864628]
[1740582414774,0.063,138.71,138.65,20.0]
[1740582414967,0.063,138.71,138.66,9.06]
[1740582415793,0.063,138.71,138.66,136.76864628]
[1740582416277,0.063,138.71,138.66,136.2]
[1740582416479,18.71264886,138.71,138.66,136.2]
[1740582416874,18.64964886,138.67,138.61,9.06]
[1740582417080,18.64964886,138.67,138.61,145.26]
[1740582417276,0.063,138.71,138.61,145.26]
[1740582417277,20.063,138.71,138.62,0.56864628]
[1740582417484,0.063,138.7,138.61,145.26]
[1740582417688,18.71264886,138.7,138.61,145.26]
[1740582418172,18.64964886,138.66,138.61,145.26]
[1740582418474,20.0,138.68,138.61,91.96]
[1740582418672,20.0,138.68,138.59,136.23]
[1740582418673,20.0,138.64,138.59,145.27]
[1740582418894,18.64964886,138.63,138.59,0.03]
[1740582421076,38.64964886,138.6,138.59,0.03]
[1740582421495,81.1,138.65,138.59,0.03]
[1740582421685,1.28432314,138.65,138.59,0.03]
[1740582421877,20.0,138.63,138.59,0.03]
[1740582422409,81.1,138.68,138.59,0.03]
[1740582422691,10.7276,138.7,138.59,136.23]
[1740582422903,1.6876,138.7,138.6,0.56864628]
[1740582423280,18.64964886,138.69,138.6,0.56864628]
[1740582423783,0.063,138.7,138.62,0.56864628]
[1740582423985,0.063,138.7,138.62,219.1]
[1740582424178,18.71264886,138.7,138.62,82.9]
[1740582424378,0.14216157,138.69,138.59,219.13]
[1740582424692,20.0,138.63,138.59,0.03]
[1740582426093,38.64964886,138.6,138.59,0.03]
[1740582426286,20.0,138.6,138.59,0.03]
[1740582426785,18.64964886,138.6,138.59,0.03]
[1740582427008,18.64964886,138.56,138.52,0.03]
[1740582427606,20.0,138.56,138.52,0.03]
[1740582427776,18.64964886,138.55,138.52,0.03]
[1740582428115,38.64964886,138.53,138.52,0.03]
[1740582430200,18.64964886,138.52,138.46,82.9]
[1740582430505,18.64964886,138.52,138.46,219.1]
[1740582431286,20.0,138.57,138.46,219.1]
[1740582431596,18.933972,138.56,138.46,219.1]
[1740582431799,18.64964886,138.56,138.46,219.1]
[1740582432391,18.64964886,138.56,138.47,0.56864628]
[1740582432602,18.64964886,138.52,138.46,136.2]
[1740582432800,18.64964886,138.52,138.45,136.23]
[1740582433180,81.1,138.58,138.46,0.56864628]
[1740582433495,2.0,138.61,138.46,219.66864628]
[1740582433700,38.64964886,138.55,138.46,219.66864628]
[1740582434099,82.1,138.62,138.47,1.51584879]
[1740582434298,81.1,138.62,138.48,0.56864628]
[1740582434513,81.1,138.62,138.51,0.56864628]
[1740582434686,121.54,138.63,138.51,0.56864628]
[1740582434883,1.5474,138.65,138.55,0.56864628]
[1740582435086,87.117,138.69,138.55,228.70864628]
[1740582435300,6.017,138.69,138.56,1.51477309]
[1740582435611,1.5746,138.7,138.59,0.56864628]
[1740582435819,1.5746,138.7,138.59,221.18306512]
[1740582435984,0.063,138.7,138.61,0.56864628]
[1740582436182,0.063,138.7,138.63,0.56864628]
[1740582436387,0.063,138.7,138.63,136.76864628]
[1740582436583,0.063,138.7,138.63,136.2]
[1740582437106,0.063,138.7,138.61,0.42648471]
[1740582437298,0.063,138.7,138.62,136.2]
[1740582438092,18.64964886,138.67,138.62,136.2]
[1740582438305,18.64964886,138.67,138.59,145.24]
[1740582438497,18.64964886,138.63,138.59,9.04]
[1740582438692,18.64964886,138.63,138.55,228.14]
[1740582438899,20.0,138.6,138.5,227.3443]
[1740582439093,20.0,138.6,138.5,234.7404]
[1740582439094,18.64964886,138.59,138.5,234.7404]
[1740582439310,20.0,138.56,138.5,234.7404]
[1740582439626,18.64964886,138.58,138.5,234.7404]
[1740582440119,0.28432314,138.62,138.5,234.7404]
[1740582440120,20.0,138.61,138.5,234.7404]
[1740582440338,20.0,138.61,138.51,0.56864628]
[1740582440609,0.14216157,138.65,138.54,20.42648471]
[1740582440808,20.0,138.62,138.54,156.62648471]
[1740582441003,0.14216157,138.64,138.54,136.2]
[1740582441399,38.64964886,138.62,138.55,0.42648471]
[1740582441592,1.6196,138.66,138.55,219.52648471]
[1740582441910,1.6196,138.66,138.56,0.14216157]
[1740582442098,18.64964886,138.65,138.56,0.14216157]
[1740582442513,81.1,138.68,138.56,219.24216157]
[1740582442704,18.64964886,138.67,138.58,0.14216157]
[1740582442903,20.0,138.69,138.58,228.28216157]
[1740582443209,0.063,138.7,138.58,228.14]
[1740582443592,20.0,138.64,138.6,6.3196466]
[1740582443809,18.64964886,138.67,138.6,6.3196466]
[1740582444004,18.64964886,138.69,138.6,6.3196466]
[1740582444187,0.063,138.7,138.61,0.42648471]
[1740582444392,0.063,138.7,138.61,219.52648471]
[1740582444600,20.0,138.69,138.61,219.52648471]
[1740582444914,18.64964886,138.68,138.61,219.52648471]
[1740582445496,0.063,138.7,138.61,219.52648471]
[1740582445791,18.64964886,138.67,138.61,219.1]
[1740582445991,18.64964886,138.67,138.61,82.9]
[1740582448224,18.64964886,138.63,138.6,6.3196466]
[1740582448429,18.64964886,138.6,138.53,9.04]
[1740582448595,0.28432314,138.59,138.5,89.5004]
[1740582448790,0.14216157,138.59,138.5,225.7004]
[1740582449826,0.14216157,138.58,138.5,82.9]
[1740582450641,0.14216157,138.56,138.5,82.9]
[1740582450806,0.14216157,138.56,138.46,219.1]
[1740582451124,0.14216157,138.56,138.46,82.9]
[1740582451293,0.28432314,138.54,138.46,219.1]
[1740582451497,18.64964886,138.53,138.46,219.1]
[1740582451698,18.64964886,138.53,138.45,0.03]
[1740582451891,18.79181043,138.53,138.52,0.03]
[1740582452326,6.1738,138.56,138.52,0.03]
[1740582452633,18.64964886,138.53,138.52,0.03]
[1740582452819,18.79181043,138.53,138.52,0.03]
[1740582453016,81.1,138.55,138.52,0.03]
[1740582453224,20.14216157,138.53,138.52,0.03]
[1740582453422,38.79181043,138.53,138.52,0.03]
[1740582454109,38.64964886,138.53,138.52,0.03]
[1740582454800,18.64964886,138.53,138.52,0.03]
[1740582454996,81.1,138.58,138.52,0.03]
[1740582455337,130.6,138.61,138.52,219.13]
[1740582455624,20.0,138.58,138.52,219.13]
[1740582455809,20.0,138.58,138.52,82.93]
[1740582456011,18.64964886,138.57,138.52,82.93]
[1740582456216,18.64964886,138.53,138.52,0.03]
[1740582456609,20.0,138.55,138.52,0.03]
[1740582456922,121.56,138.61,138.52,0.03]
[1740582457141,38.64964886,138.57,138.52,219.13]
[1740582457308,38.64964886,138.57,138.52,82.93]
[1740582457708,20.0,138.58,138.52,82.93]
[1740582458406,18.64964886,138.57,138.52,82.93]
[1740582458622,121.56,138.61,138.52,82.93]
[1740582459002,20.0,138.58,138.52,82.93]
[1740582459325,1.0,138.63,138.53,9.46648471]
[1740582459326,81.1,138.63,138.53,9.46648471]
[1740582459502,9.04,138.65,138.53,228.56648471]
[1740582459503,90.14,138.65,138.53,228.56648471]
[1740582459705,20.0,138.62,138.53,228.56648471]
[1740582459932,18.64964886,138.64,138.54,0.14216157]
[1740582460106,18.64964886,138.64,138.55,6.2485]
[1740582460308,18.933972,138.66,138.55,6.2485]
[1740582460642,81.1,138.67,138.56,0.42648471]
[1740582460808,20.0,138.63,138.56,0.42648471]
[1740582461007,20.0,138.63,138.56,219.52648471]
[1740582461534,18.64964886,138.67,138.56,219.52648471]
[1740582461830,99.74964886,138.67,138.57,0.42648471]
[1740582462136,20.0,138.63,138.57,0.42648471]
[1740582462314,121.62,138.69,138.58,1.65699647]
[1740582462520,121.62,138.69,138.6,0.42648471]
[1740582462840,121.62,138.69,138.61,0.14216157]
[1740582463032,0.063,138.7,138.62,0.42648471]
[1740582463433,20.063,138.7,138.62,219.52648471]
[1740582463637,20.063,138.7,138.59,228.14]
[1740582463836,20.0,138.66,138.6,0.42648471]
[1740582464146,0.063,138.69,138.61,0.14216157]
[1740582464452,18.71264886,138.69,138.62,0.28432314]
[1740582465038,0.063,138.69,138.61,219.1]
[1740582465246,0.063,138.69,138.63,0.28432314]
[1740582466014,0.063,138.69,138.64,0.42648471]
[1740582466212,0.063,138.69,138.66,0.28432314]
[1740582466408,0.063,138.69,138.68,0.28432314]
[1740582466644,0.063,138.69,138.68,219.38432314]
[1740582466847,0.063,138.7,138.69,1.56864628]
[1740582467053,0.063,138.76,138.74,0.28432314]
[1740582467347,0.063,138.76,138.75,6.65762314]
[1740582467549,0.063,138.76,138.75,142.85762314]
[1740582467734,0.063,138.76,138.75,226.04194628]
[1740582467919,0.063,138.79,138.76,0.56864628]
[1740582468119,0.063,138.81,138.78,21.56864628]
[1740582468343,0.063,138.81,138.8,0.28432314]
[1740582468516,0.063,138.81,138.8,228.40432314]
[1740582468721,0.063,138.81,138.8,228.12]
[1740582468953,0.063,138.81,138.8,228.40432314]
[1740582469252,0.063,138.81,138.79,0.28432314]
[1740582469421,0.063,138.81,138.78,145.22]
[1740582469611,0.063,138.81,138.79,0.28432314]
[1740582469817,0.063,138.81,138.8,0.28432314]
[1740582470026,0.063,138.81,138.8,136.2]
[1740582470966,0.063,138.84,138.82,0.28432314]
[1740582471131,0.063,138.84,138.82,136.48432314]
[1740582471332,0.063,138.84,138.83,0.28432314]
[1740582471862,0.063,138.85,138.83,219.66864628]
[1740582472156,0.063,138.85,138.84,9.30432314]
[1740582472455,1.5398,138.97,138.87,0.14216157]
[1740582472456,0.1028,138.97,138.87,0.14216157]
[1740582472652,0.1028,138.97,138.87,136.34216157]
[1740582472950,18.64964886,138.94,138.87,136.34216157]
[1740582473150,202.6,139.0,138.88,0.28432314]
[1740582473356,1.0,139.03,138.89,0.14216157]
[1740582473650,90.3958457,139.04,138.91,0.14216157]
[1740582473858,18.64964886,139.01,138.91,136.34216157]
[1740582474152,18.64964886,138.97,138.91,136.34216157]
[1740582474542,18.64964886,138.97,138.91,136.2]
[1740582474735,18.996972,139.02,138.91,136.2]
[1740582475152,18.933972,138.98,138.91,136.2]
[1740582475445,18.64964886,138.98,138.89,228.12]
[1740582475646,18.64964886,138.94,138.89,228.12]
[1740582476294,0.063,139.02,138.89,228.12]
[1740582476429,0.34732314,139.02,138.89,228.12]
[1740582476630,38.933972,138.99,138.89,228.12]
[1740582477338,39.933972,138.99,138.88,9.02]
[1740582477541,38.933972,138.99,138.88,9.02]
[1740582478859,39.933972,138.99,138.88,9.02]
[1740582479238,38.933972,138.99,138.88,9.02]
[1740582479433,40.933972,138.99,138.88,9.02]
[1740582479637,18.79181043,138.97,138.88,9.02]
[1740582479840,18.64964886,138.93,138.88,9.02]
[1740582480056,81.1,139.0,138.88,145.22]
[1740582480057,82.1,139.0,138.88,145.22]
[1740582480559,38.64964886,138.96,138.88,145.22]
[1740582482362,0.063,139.02,138.91,0.14216157]
[1740582482572,0.063,139.02,138.93,0.14216157]
[1740582482753,0.063,139.02,138.94,9.0]
[1740582483560,18.64964886,138.99,138.91,82.9]
[1740582484167,0.14216157,138.98,138.91,82.9]
[1740582484465,18.64964886,138.95,138.9,9.0]
[1740582484767,0.14216157,139.0,138.9,145.2]
[1740582484947,18.64964886,138.97,138.9,145.2]
[1740582485154,18.64964886,138.97,138.9,9.0]
[1740582486664,18.64964886,138.97,138.9,228.1]
[1740582486872,0.063,139.02,138.91,0.56864628]
[1740582487047,0.063,139.02,138.91,221.18002071]
[1740582487362,0.03,138.97,138.91,219.66864628]
[1740582487544,0.03,138.97,138.94,20.0]
[1740582487740,0.03,138.97,138.96,6.6514]
[1740582487967,0.03,138.97,138.96,234.89356157]
[1740582488375,0.03,138.97,138.96,234.7514]
[1740582488556,0.063,139.02,138.96,234.89356157]
[1740582489169,0.063,139.02,138.97,2.07915051]
[1740582489371,0.063,139.02,139.0,20.0]
[1740582489564,0.063,139.02,139.0,239.1]
[1740582489872,0.063,139.05,139.0,239.1]
[1740582490244,0.063,139.05,139.01,2.07859808]
[1740582490448,0.063,139.05,139.02,9.0]
[1740582490648,0.063,139.05,139.03,6.86694628]
[1740582490649,0.3560457,139.04,139.03,6.86694628]
[1740582490850,0.063,139.05,139.03,225.96694628]
[1740582491046,0.063,139.05,139.03,225.3983]
[1740582491279,0.063,139.05,139.04,1.50955058]
[1740582491475,0.063,139.05,139.04,219.1]
[1740582491770,0.03,139.11,139.04,219.1]
[1740582491959,0.03,139.11,139.05,1.6517732]
[1740582492368,0.03,139.11,139.09,0.14216157]
[1740582492573,0.03,139.16,139.13,20.0]
[1740582492876,0.03,139.16,139.13,156.2]
[1740582493487,0.03,139.16,139.14,0.14216157]
[1740582493649,0.03,139.16,139.14,1.65057359]
[1740582493855,0.03,139.16,139.14,220.75057359]
[1740582494180,1.5857,139.3,139.18,6.2454]
[1740582494382,1.5857,139.3,139.19,8.98]
[1740582494884,1.5857,139.3,139.19,145.18]
[1740582495066,18.64964886,139.29,139.19,145.18]
[1740582495256,1.5857,139.3,139.19,145.18]
[1740582495450,2.0226457,139.32,139.19,145.18]
[1740582495652,2.0226457,139.32,139.22,20.0]
[1740582495966,2.0226457,139.32,139.25,20.0]
[1740582496193,2.0226457,139.32,139.26,8.98]
[1740582496965,2.0226457,139.32,139.23,136.2]
[1740582497159,18.64964886,139.31,139.23,136.2]
[1740582497564,0.28432314,139.3,139.21,8.98]
[1740582497856,11.0026457,139.32,139.19,8.98]
[1740582498061,20.0,139.29,139.19,8.98]
[1740582498278,20.0,139.29,139.19,145.18]
[1740582498785,2.0226457,139.32,139.19,145.18]
[1740582498963,2.0226457,139.32,139.19,228.08]
[1740582499156,18.64964886,139.31,139.19,228.08]
[1740582499358,2.0226457,139.32,139.22,20.0]
[1740582499583,2.0226457,139.32,139.23,2.07601329]
[1740582499584,2.0526457,139.32,139.23,2.07601329]
[1740582499981,2.0526457,139.32,139.23,137.70736701]
[1740582500162,2.0526457,139.32,139.23,136.2]
[1740582500857,2.0526457,139.32,139.23,220.60752005]
[1740582501074,2.0526457,139.32,139.23,219.1]
[1740582501295,2.0526457,139.32,139.26,20.0]
[1740582501474,2.0526457,139.32,139.27,10.4869273]
[1740582501677,2.0526457,139.32,139.27,229.5869273]
[1740582501869,2.0526457,139.32,139.28,6.0986]
[1740582502081,2.0526457,139.32,139.3,0.56864628]
[1740582502382,2.0526457,139.32,139.3,220.60643516]
[1740582502591,2.0526457,139.32,139.3,136.2]
[1740582502771,2.0526457,139.32,139.3,220.60666726]
[1740582502974,2.0526457,139.32,139.31,0.56864628]
[1740582503178,2.0526457,139.32,139.3,219.1]
[1740582503378,2.0526457,139.32,139.3,136.2]
[1740582503685,2.0526457,139.32,139.31,0.56864628]
[1740582504078,2.0526457,139.32,139.31,219.66864628]
[1740582504284,2.0526457,139.32,139.31,219.1]
[1740582505177,2.0526457,139.32,139.28,6.0986]
[1740582505872,2.0526457,139.32,139.29,1.50705744]
[1740582506382,2.0526457,139.32,139.28,225.1986]
[1740582506783,2.0526457,139.32,139.28,219.1]
[1740582507191,2.0526457,139.32,139.28,136.2]
[1740582507484,2.0526457,139.32,139.27,145.16]
[1740582507686,2.0526457,139.32,139.24,219.1]
[1740582508396,2.0526457,139.32,139.26,0.56864628]
[1740582508581,2.0526457,139.32,139.24,219.1]
[1740582508889,18.64964886,139.31,139.24,136.2]
[1740582509091,2.0526457,139.32,139.23,151.3335]
[1740582509490,18.64964886,139.31,139.23,142.3735]
[1740582509672,18.64964886,139.31,139.23,136.2]
[1740582510282,18.64964886,139.31,139.22,8.96]
[1740582510283,0.14216157,139.3,139.22,8.96]
[1740582510589,18.64964886,139.31,139.21,219.1]
[1740582511080,0.14216157,139.3,139.21,219.1]
[1740582511307,20.0,139.28,139.19,136.2]
[1740582511482,0.28432314,139.27,139.16,136.263]
[1740582512103,0.14216157,139.27,139.16,136.263]
[1740582512886,18.64964886,139.25,139.16,136.263]
[1740582513095,18.64964886,139.21,139.16,0.063]
[1740582513296,20.0,139.22,139.16,0.063]
[1740582513591,20.0,139.2,139.16,0.063]
[1740582513803,18.64964886,139.19,139.16,0.063]
[1740582514277,38.64964886,139.17,139.06,8.96]
[1740582514485,20.0,139.16,139.06,136.2]
[1740582514682,18.64964886,139.15,139.06,136.2]
[1740582514877,20.0,139.16,139.06,136.2]
[1740582515080,1.5737,139.18,139.06,136.2]
[1740582515278,21.5737,139.18,139.06,136.2]
[1740582515491,20.0,139.17,139.06,136.2]
[1740582515678,18.64964886,139.16,139.06,136.2]
[1740582516085,18.64964886,139.14,139.06,136.2]
[1740582516280,18.64964886,139.14,139.04,136.2]
[1740582516480,18.64964886,139.14,139.02,136.263]
[1740582516682,8.96,139.15,139.02,219.163]
[1740582517298,18.64964886,139.14,139.02,219.163]
[1740582517491,20.0,139.11,139.02,219.163]
[1740582517695,6.1215,139.13,139.02,136.263]
[1740582517998,20.0,139.12,139.02,136.263]
[1740582518496,0.14216157,139.17,139.02,219.163]
[1740582518692,20.0,139.15,139.02,219.163]
[1740582519291,1.5737,139.18,139.06,0.56864628]
[1740582519494,1.6598,139.24,139.07,10.46935761]
[1740582519680,2.6598,139.24,139.08,0.56864628]
[1740582519992,20.0,139.2,139.08,0.56864628]
[1740582520177,18.64964886,139.22,139.09,1.50901565]
[1740582520371,18.64964886,139.21,139.09,136.2]
[1740582520787,20.0,139.18,139.09,136.2]
[1740582521400,18.64964886,139.17,139.07,136.2]
[1740582521903,20.0,139.18,139.07,136.2]
[1740582522192,20.0,139.16,139.07,136.2]
[1740582522914,121.08,139.21,139.08,1.5092911]
[1740582523081,18.79181043,139.2,139.08,136.2]
[1740582523398,20.0,139.18,139.08,136.2]
[1740582523606,121.08,139.21,139.08,226.81423735]
[1740582523786,121.08,139.21,139.08,225.3051]
[1740582523992,121.08,139.21,139.09,2.07763644]
[1740582524192,121.08,139.21,139.09,221.17763644]
[1740582524394,18.64964886,139.23,139.09,227.85814628]
[1740582524702,1.6598,139.24,139.09,227.85814628]
[1740582524914,18.64964886,139.21,139.09,226.2895]
[1740582525076,18.64964886,139.19,139.09,219.1]
[1740582525274,0.28432314,139.18,139.09,219.1]
[1740582525497,0.28432314,139.18,139.07,145.16]
[1740582525703,18.64964886,139.15,139.07,145.16]
[1740582526004,18.64964886,139.15,139.03,89.2737]
[1740582526005,20.0,139.12,139.03,225.4737]
[1740582526208,18.64964886,139.11,139.02,136.263]
[1740582526578,0.28432314,139.12,139.02,136.263]
[1740582527101,20.0,139.1,139.02,136.263]
[1740582528278,1.5922,139.14,139.02,136.263]
[1740582528497,20.0,139.12,139.02,136.263]
[1740582530488,20.0,139.08,139.02,136.263]
[1740582530687,18.64964886,139.07,139.02,0.063]
[1740582531178,20.0,139.04,139.02,0.063]
[1740582533814,18.64964886,139.03,138.93,136.2]
[1740582533982,20.0,139.0,138.93,136.2]
[1740582534184,20.0,139.0,138.9,219.1]
[1740582534488,18.64964886,138.99,138.9,219.1]
[1740582534896,18.64964886,138.99,138.93,0.063]
[1740582535283,20.0,138.96,138.93,0.063]
[1740582537118,18.64964886,138.99,138.93,0.063]
[1740582537485,92.6721,139.04,138.93,0.063]
[1740582537701,18.933972,139.03,138.93,0.063]
[1740582537900,20.0,139.0,138.93,0.063]
[1740582538209,18.64964886,139.03,138.93,219.163]
[1740582538383,1.5921,139.04,138.93,219.163]
[1740582538582,121.16,139.06,138.94,0.56864628]
[1740582538783,20.0,139.03,138.94,219.1]
[1740582539206,0.28432314,139.04,138.94,219.1]
[1740582539411,18.64964886,139.05,138.94,219.1]
[1740582540109,20.0,139.02,138.94,219.1]
[1740582540408,20.0,138.98,138.93,0.063]
[1740582540704,18.64964886,138.97,138.93,0.063]
[1740582540908,20.0,138.94,138.93,0.063]
[1740582541282,18.64964886,138.97,138.93,0.063]
[1740582541484,1.6453,138.99,138.93,0.063]
[1740582541690,6.21,139.04,138.93,0.063]
[1740582541886,1.6476,139.05,138.93,219.163]
[1740582542113,20.0,139.03,138.93,219.163]
[1740582542410,18.64964886,139.03,138.93,0.063]
[1740582542791,1.6476,139.05,138.93,219.163]
[1740582543193,121.16,139.06,138.94,0.56864628]
[1740582543400,1.5353,139.1,138.96,0.56864628]
[1740582543599,2.5353,139.1,138.97,8.98]
[1740582543809,18.64964886,139.09,138.97,228.08]
[1740582543996,1.5353,139.1,138.98,0.56864628]
[1740582544199,36.92398605,139.29,139.13,20.0]
[1740582544515,36.92398605,139.29,139.15,0.56864628]
[1740582544704,1.6652,139.29,139.15,2.07689908]
[1740582545107,1.6652,139.29,139.15,1.5082528]
[1740582545108,0.28432314,139.26,139.15,1.5082528]
[1740582545313,20.0,139.24,139.15,1.5082528]
[1740582545499,1.03,139.27,139.15,136.2]
[1740582545693,10.99,139.27,139.15,136.2]
[1740582545894,20.0,139.24,139.15,136.2]
[1740582546391,8.96,139.26,139.15,136.2]
[1740582546806,20.0,139.23,139.15,136.2]
[1740582547212,20.0,139.23,139.1,225.4225]
[1740582547400,20.0,139.19,139.1,142.5225]
[1740582547599,0.28432314,139.25,139.11,1.50895322]
[1740582547917,20.0,139.23,139.12,0.42648471]
[1740582548111,20.0,139.23,139.11,1.65111479]
[1740582548418,20.0,139.19,139.11,136.2]
[1740582548616,20.0,139.19,139.1,142.5225]
[1740582549123,20.0,139.15,139.06,136.2]
[1740582549619,20.0,139.15,139.06,219.1]
[1740582549999,130.14,139.19,139.06,219.1]
[1740582550201,121.18,139.19,139.07,0.56864628]
[1740582550410,121.18,139.19,139.07,2.07785499]
[1740582550617,121.18,139.19,139.07,0.56864628]
[1740582551004,121.18,139.19,139.08,1.50915711]
[1740582551213,121.18,139.19,139.07,219.1]
[1740582551514,121.18,139.19,139.08,2.07781143]
[1740582552029,121.18,139.19,139.07,219.1]
[1740582552320,20.03,139.16,139.07,219.1]
[1740582552524,20.03,139.16,139.07,228.06]
[1740582553097,20.03,139.16,139.08,0.56864628]
[1740582553297,0.03,139.16,139.08,2.07768349]
[1740582553500,0.03,139.16,139.08,0.56864628]
[1740582553709,0.03,139.16,139.07,228.06]
[1740582554326,20.0,139.15,139.07,228.06]
[1740582554704,20.0,139.15,139.07,219.1]
[1740582555305,20.0,139.11,139.07,82.9]
[1740582555528,20.0,139.11,139.01,8.96]
[1740582555734,1.5089,139.31,139.18,1.0]
[1740582556032,1.5089,139.31,139.19,8.96]
[1740582556211,6.1627,139.36,139.2,0.56864628]
[1740582556416,2.0,139.35,139.2,1.50758948]
[1740582556937,7.6716,139.36,139.21,0.56864628]
[1740582557143,20.0,139.33,139.21,219.66864628]
[1740582557624,1.0,139.33,139.21,219.1]
[1740582557826,20.0,139.28,139.21,219.1]
[1740582558200,9.6716,139.36,139.21,219.1]
[1740582558409,7.6716,139.36,139.25,0.56864628]
[1740582558609,1.5606,139.41,139.27,0.56864628]
[1740582558833,1.5606,139.41,139.29,40.96829514]
[1740582559001,0.03,139.41,139.3,0.14216157]
[1740582559205,0.03,139.41,139.31,42.47469274]
[1740582559602,0.03,139.41,139.31,242.92504388]
[1740582559828,0.03,139.41,139.31,241.41864628]
[1740582560225,0.03,139.41,139.31,260.06829514]
[1740582560536,0.03,139.41,139.32,0.56864628]
[1740582560718,0.03,139.41,139.33,10.46631582]
[1740582561027,0.03,139.41,139.33,228.06]
[1740582561335,20.0,139.43,139.33,219.1]
[1740582561536,20.0,139.43,139.33,228.06]
[1740582562338,20.0,139.43,139.33,219.1]
[1740582562514,21.0,139.43,139.33,219.1]
[1740582563513,20.0,139.39,139.33,219.1]
[1740582563715,20.0,139.39,139.26,0.14216157]
[1740582564021,20.0,139.39,139.27,10.46677676]
[1740582564332,21.0,139.39,139.27,8.96]
[1740582564509,20.0,139.39,139.27,8.96]
[1740582565233,20.0,139.39,139.27,10.46697449]
[1740582565923,20.0,139.39,139.27,229.56697449]
[1740582566120,20.0,139.39,139.27,228.06]
[1740582566323,21.0,139.39,139.27,228.06]
[1740582567036,20.16034886,139.38,139.27,219.1]
[1740582567234,20.0,139.37,139.27,219.1]
[1740582567434,1.5107,139.38,139.28,1.50729731]
[1740582567813,1.5107,139.38,139.29,0.56864628]
[1740582568013,1.5107,139.38,139.29,219.66864628]
[1740582568216,1.5107,139.38,139.29,219.1]
[1740582570541,21.5107,139.38,139.29,219.1]
[1740582571018,21.5407,139.38,139.29,219.1]
[1740582572520,1.5407,139.38,139.29,219.1]
[1740582573822,1.5407,139.38,139.3,1.50682047]
[1740582574042,1.5407,139.38,139.3,220.60682047]
[1740582574224,1.5407,139.38,139.3,219.1]